[Event "Live Chess"]
[Site "Chess.com"]
[Date "2023.05.21"]
[Round "-"]
[White "jbooth"]
[Black "Shepherds_Pie"]
[Result "0-1"]
[WhiteElo "1711"]
[BlackElo "1908"]
[TimeControl "300"]
[EndTime "23:10:24 PDT"]
[Termination "Shepherds_Pie won by resignation"]

1. e4 {[%clk 0:04:55.6]} 1... e6 {[%clk 0:04:57]} 2. d4 {[%clk 0:04:53.5]} 2...
d5 {[%clk 0:04:55.9]} 3. Nc3 {[%clk 0:04:53]} 3... Bb4 {[%clk 0:04:54]} 4. e5
{[%clk 0:04:52]} 4... c5 {[%clk 0:04:52.9]} 5. Bd2 {[%clk 0:04:51.6]} 5... Nc6
{[%clk 0:04:51]} 6. Nb5 {[%clk 0:04:50.2]} 6... Bxd2+ {[%clk 0:04:48.6]} 7. Qxd2
{[%clk 0:04:49.7]} 7... Nxd4 {[%clk 0:04:47.5]} 8. Nd6+ {[%clk 0:04:42.9]} 8...
Kf8 {[%clk 0:04:45.8]} 9. f4 {[%clk 0:04:42.1]} 9... Nh6 {[%clk 0:04:42]} 10. c3
{[%clk 0:04:40.1]} 10... Nc6 {[%clk 0:04:40.1]} 11. Nf3 {[%clk 0:04:39.4]} 11...
f6 {[%clk 0:04:37.7]} 12. O-O-O {[%clk 0:04:35.1]} 12... Nf7 {[%clk 0:04:34.6]}
13. Nxc8 {[%clk 0:04:30.2]} 13... Rxc8 {[%clk 0:04:32.9]} 14. Kb1 {[%clk
0:04:24.4]} 14... Qe7 {[%clk 0:04:25.8]} 15. exf6 {[%clk 0:04:19]} 15... Qxf6
{[%clk 0:04:23.9]} 16. Bd3 {[%clk 0:04:14.9]} 16... Nd6 {[%clk 0:04:06.2]} 17.
g4 {[%clk 0:04:05.2]} 17... d4 {[%clk 0:03:55.8]} 18. Ng5 {[%clk 0:03:59.6]}
18... g6 {[%clk 0:03:45.9]} 19. Rde1 {[%clk 0:03:39.6]} 19... Nd8 {[%clk
0:03:39.4]} 20. h4 {[%clk 0:03:37]} 20... c4 {[%clk 0:03:37.5]} 21. Be4 {[%clk
0:03:28.6]} 21... d3 {[%clk 0:03:27.6]} 22. Nxe6+ {[%clk 0:03:16.6]} 22... Nxe6
{[%clk 0:03:24.7]} 23. Bd5 {[%clk 0:03:12.5]} 23... Nc5 {[%clk 0:03:17.1]} 24.
h5 {[%clk 0:03:02.1]} 24... Re8 {[%clk 0:03:05.6]} 25. hxg6 {[%clk 0:02:56.5]}
25... Rxe1+ {[%clk 0:03:02.5]} 26. Qxe1 {[%clk 0:02:53.6]} 26... Kg7 {[%clk
0:02:56.6]} 27. Rxh7+ {[%clk 0:02:47.5]} 27... Rxh7 {[%clk 0:02:54.8]} 28. gxh7
{[%clk 0:02:47]} 28... Kxh7 {[%clk 0:02:53.7]} 29. Qh1+ {[%clk 0:02:36.1]} 29...
Kg7 {[%clk 0:02:44.9]} 30. Qf3 {[%clk 0:02:18.1]} 30... d2 {[%clk 0:02:35.1]}
31. Kc2 {[%clk 0:02:14.7]} 31... Qg6+ {[%clk 0:02:16.3]} 32. Kxd2 {[%clk
0:02:12.9]} 32... Qb1 {[%clk 0:02:12.1]} 33. Ke3 {[%clk 0:01:55.9]} 33... Qd3+
{[%clk 0:02:06.2]} 34. Kf2 {[%clk 0:01:53.4]} 34... Nde4+ {[%clk 0:02:02.4]} 35.
Kg2 {[%clk 0:01:51.3]} 35... Qd2+ {[%clk 0:01:43.6]} 36. Kh3 {[%clk 0:01:46.4]}
36... Nf2+ {[%clk 0:01:37.3]} 37. Kg3 {[%clk 0:01:41.4]} 37... Ncd3 {[%clk
0:01:28.3]} 38. Bxc4 {[%clk 0:01:29]} 38... Ne4+ {[%clk 0:01:03.9]} 39. Qxe4
{[%clk 0:01:07.9]} 39... Qf2+ {[%clk 0:01:01.8]} 40. Kh3 {[%clk 0:01:04.6]}
40... Nxf4+ {[%clk 0:01:00.7]} 41. Qxf4 {[%clk 0:01:02.3]} 41... Qxf4 {[%clk
0:00:57.8]} 42. Be6 {[%clk 0:00:59.3]} 42... Qe3+ {[%clk 0:00:55.6]} 0-1

[Event "Live Chess"]
[Site "Chess.com"]
[Date "2023.05.21"]
[Round "-"]
[White "Tushinskiy"]
[Black "matt1979"]
[Result "1-0"]
[WhiteElo "2200"]
[BlackElo "1523"]
[TimeControl "300"]
[EndTime "23:10:26 PDT"]
[Termination "Tushinskiy won by resignation"]

1. d4 {[%clk 0:04:57.6]} 1... e6 {[%clk 0:04:57.8]} 2. c3 {[%clk 0:04:56.3]}
2... f5 {[%clk 0:04:55.8]} 3. Nf3 {[%clk 0:04:53.2]} 3... Nf6 {[%clk 0:04:54.8]}
4. Bf4 {[%clk 0:04:53.1]} 4... d6 {[%clk 0:04:52.7]} 5. Bg3 {[%clk 0:04:53]}
5... Be7 {[%clk 0:04:50.3]} 6. Nbd2 {[%clk 0:04:51.9]} 6... O-O {[%clk
0:04:48.9]} 7. Qc1 {[%clk 0:04:50.8]} 7... Nbd7 {[%clk 0:04:32.6]} 8. e3 {[%clk
0:04:48.6]} 8... Ne4 {[%clk 0:04:23.4]} 9. Nxe4 {[%clk 0:04:45.9]} 9... fxe4
{[%clk 0:04:21.7]} 10. Nd2 {[%clk 0:04:45.8]} 10... d5 {[%clk 0:04:19.9]} 11.
Be2 {[%clk 0:04:45.2]} 11... c6 {[%clk 0:04:17.8]} 12. f3 {[%clk 0:04:41]} 12...
Nf6 {[%clk 0:04:14.9]} 13. fxe4 {[%clk 0:04:38.3]} 13... dxe4 {[%clk 0:04:08.1]}
14. O-O {[%clk 0:04:36.6]} 14... Bd6 {[%clk 0:04:02.5]} 15. Bxd6 {[%clk
0:04:28]} 15... Qxd6 {[%clk 0:04:01]} 16. Nc4 {[%clk 0:04:27.2]} 16... Qc7
{[%clk 0:03:55.6]} 17. Ne5 {[%clk 0:04:26.2]} 17... Nd7 {[%clk 0:03:47.6]} 18.
Rxf8+ {[%clk 0:04:24.4]} 18... Kxf8 {[%clk 0:03:45.6]} 19. Qf1+ {[%clk
0:04:22.4]} 19... Kg8 {[%clk 0:03:42.6]} 20. Qf7+ {[%clk 0:04:20]} 20... Kh8
{[%clk 0:03:41.5]} 21. Qe8+ {[%clk 0:04:19.1]} 1-0

[Event "Live Chess"]
[Site "Chess.com"]
[Date "2023.05.21"]
[Round "-"]
[White "mirandaasilva"]
[Black "peter-785"]
[Result "0-1"]
[WhiteElo "1637"]
[BlackElo "1223"]
[TimeControl "300"]
[EndTime "23:10:37 PDT"]
[Termination "peter-785 won by resignation"]

1. g3 {[%clk 0:04:57.8]} 1... c5 {[%clk 0:04:59.3]} 2. Bg2 {[%clk 0:04:57.7]}
2... Nc6 {[%clk 0:04:58.1]} 3. Nf3 {[%clk 0:04:56.6]} 3... Qc7 {[%clk
0:04:57.5]} 4. d4 {[%clk 0:04:55.5]} 4... cxd4 {[%clk 0:04:55.6]} 5. Nxd4 {[%clk
0:04:55.4]} 5... Nxd4 {[%clk 0:04:53.2]} 6. Qxd4 {[%clk 0:04:55.3]} 6... Nf6
{[%clk 0:04:48.1]} 7. Nc3 {[%clk 0:04:50.8]} 7... e6 {[%clk 0:04:45.6]} 8. Bf4
{[%clk 0:04:49.4]} 8... Qb6 {[%clk 0:04:08.7]} 9. O-O {[%clk 0:04:17.2]} 9...
Qxd4 {[%clk 0:04:04.4]} 10. Rad1 {[%clk 0:04:11.7]} 10... Qb6 {[%clk 0:03:45.2]}
11. Rd3 {[%clk 0:04:11.6]} 0-1

[Event "Live Chess"]
[Site "Chess.com"]
[Date "2023.05.21"]
[Round "-"]
[White "Rusty_Bridges"]
[Black "profpirate4"]
[Result "1-0"]
[WhiteElo "1521"]
[BlackElo "1220"]
[TimeControl "300"]
[EndTime "23:10:38 PDT"]
[Termination "Rusty_Bridges won on time"]

1. e4 {[%clk 0:04:55.1]} 1... c5 {[%clk 0:04:59.2]} 2. Be2 {[%clk 0:04:53]} 2...
d6 {[%clk 0:04:58.2]} 3. f4 {[%clk 0:04:51.9]} 3... g6 {[%clk 0:04:56.2]} 4. Nf3
{[%clk 0:04:51]} 4... Bg7 {[%clk 0:04:55.4]} 5. O-O {[%clk 0:04:49.1]} 5... Nc6
{[%clk 0:04:54.3]} 6. Nc3 {[%clk 0:04:41.1]} 6... e6 {[%clk 0:04:49.2]} 7. d3
{[%clk 0:04:33.1]} 7... a6 {[%clk 0:04:48]} 8. Be3 {[%clk 0:04:31.7]} 8... b5
{[%clk 0:04:46.7]} 9. a3 {[%clk 0:04:29.2]} 9... Bb7 {[%clk 0:04:45]} 10. Qe1
{[%clk 0:04:19.8]} 10... Nge7 {[%clk 0:04:43.6]} 11. Rd1 {[%clk 0:04:17]} 11...
O-O {[%clk 0:04:42.4]} 12. h4 {[%clk 0:04:14.1]} 12... Nd4 {[%clk 0:04:41.2]}
13. Bxd4 {[%clk 0:03:56.6]} 13... cxd4 {[%clk 0:04:39]} 14. Nb1 {[%clk
0:03:54.6]} 14... e5 {[%clk 0:04:35.9]} 15. fxe5 {[%clk 0:03:47.2]} 15... dxe5
{[%clk 0:04:34.5]} 16. Ng5 {[%clk 0:03:37.3]} 16... h6 {[%clk 0:04:21.2]} 17.
Nf3 {[%clk 0:03:23.4]} 17... Bc8 {[%clk 0:04:06.3]} 18. Nh2 {[%clk 0:03:19.4]}
18... Be6 {[%clk 0:03:54.1]} 19. Bg4 {[%clk 0:03:14.3]} 19... Qd7 {[%clk
0:03:49.8]} 20. Bxe6 {[%clk 0:03:05.2]} 20... Qxe6 {[%clk 0:03:48.7]} 21. Nd2
{[%clk 0:03:01.2]} 21... Rac8 {[%clk 0:03:43.4]} 22. Rc1 {[%clk 0:02:57]} 22...
Nc6 {[%clk 0:03:36.1]} 23. Qe2 {[%clk 0:02:49.1]} 23... a5 {[%clk 0:03:28]} 24.
h5 {[%clk 0:02:45.2]} 24... b4 {[%clk 0:03:14.9]} 25. hxg6 {[%clk 0:02:36.2]}
25... fxg6 {[%clk 0:03:09.8]} 26. axb4 {[%clk 0:02:00.7]} 26... Nxb4 {[%clk
0:03:05.1]} 27. Nc4 {[%clk 0:01:58.3]} 27... a4 {[%clk 0:02:58]} 28. Ra1 {[%clk
0:01:52.1]} 28... Qd7 {[%clk 0:02:50.7]} 29. Ng4 {[%clk 0:01:43.8]} 29... Rfe8
{[%clk 0:02:35.6]} 30. Qd2 {[%clk 0:01:36.9]} 30... Nc6 {[%clk 0:02:24.9]} 31.
Nxh6+ {[%clk 0:01:27.8]} 31... Kh7 {[%clk 0:02:08.8]} 32. Nf7 {[%clk 0:01:20.6]}
32... Re7 {[%clk 0:01:50.3]} 33. Ng5+ {[%clk 0:01:02.6]} 33... Kg8 {[%clk
0:01:45.4]} 34. Rxa4 {[%clk 0:01:00.4]} 34... Bh6 {[%clk 0:01:39.9]} 35. Rf3
{[%clk 0:00:47.1]} 35... Rf7 {[%clk 0:01:30.8]} 36. Rg3 {[%clk 0:00:45.3]} 36...
Rcf8 {[%clk 0:01:20.8]} 37. Ra6 {[%clk 0:00:39.8]} 37... Rf1+ {[%clk 0:01:17.1]}
38. Kh2 {[%clk 0:00:37.3]} 38... R1f2 {[%clk 0:00:57.2]} 39. Qe1 {[%clk
0:00:31.1]} 39... Bxg5 {[%clk 0:00:49.4]} 40. Rxg5 {[%clk 0:00:29.1]} 40... Qh7+
{[%clk 0:00:47.9]} 41. Kg3 {[%clk 0:00:27.1]} 41... Qh6 {[%clk 0:00:29.7]} 42.
Rg4 {[%clk 0:00:22.3]} 42... Rf1 {[%clk 0:00:14.7]} 43. Qe2 {[%clk 0:00:20.1]}
1-0

[Event "Live Chess"]
[Site "Chess.com"]
[Date "2023.05.21"]
[Round "-"]
[White "MarkLim1"]
[Black "SavagePawn7"]
[Result "1-0"]
[WhiteElo "1663"]
[BlackElo "784"]
[TimeControl "300"]
[EndTime "23:11:00 PDT"]
[Termination "MarkLim1 won by resignation"]

1. d4 {[%clk 0:04:59.1]} 1... e5 {[%clk 0:04:56.4]} 2. dxe5 {[%clk 0:04:57.8]}
2... d6 {[%clk 0:04:54]} 3. exd6 {[%clk 0:04:56.4]} 3... Bxd6 {[%clk 0:04:53]}
4. Nc3 {[%clk 0:04:55.6]} 4... Nc6 {[%clk 0:04:51.8]} 5. Nf3 {[%clk 0:04:53.5]}
5... Bg4 {[%clk 0:04:46]} 6. h3 {[%clk 0:04:45.2]} 6... Bxf3 {[%clk 0:04:43.9]}
7. exf3 {[%clk 0:04:44.3]} 7... Qe7+ {[%clk 0:04:29.9]} 8. Qe2 {[%clk 0:04:41]}
8... Qxe2+ {[%clk 0:04:27.4]} 9. Bxe2 {[%clk 0:04:40.1]} 9... O-O-O {[%clk
0:04:22.7]} 10. O-O {[%clk 0:04:38.5]} 10... Re8 {[%clk 0:04:20.3]} 11. Bb5
{[%clk 0:04:33.9]} 11... a6 {[%clk 0:04:10.5]} 12. Bxc6 {[%clk 0:04:32.5]} 12...
bxc6 {[%clk 0:04:09.6]} 13. Be3 {[%clk 0:04:29.8]} 13... Nf6 {[%clk 0:04:00.3]}
14. Rfd1 {[%clk 0:04:26.1]} 14... Rd8 {[%clk 0:03:48.6]} 15. Rd3 {[%clk
0:04:22.8]} 15... Rhe8 {[%clk 0:03:46.5]} 16. Rad1 {[%clk 0:04:20.5]} 16... Bb4
{[%clk 0:03:35.3]} 17. Rxd8+ {[%clk 0:04:13.1]} 17... Rxd8 {[%clk 0:03:33.8]}
18. Rxd8+ {[%clk 0:04:11.7]} 18... Kxd8 {[%clk 0:03:32.5]} 19. Ne4 {[%clk
0:04:09]} 19... Nxe4 {[%clk 0:03:30.4]} 20. fxe4 {[%clk 0:04:07.9]} 20... Bd6
{[%clk 0:03:19]} 21. f4 {[%clk 0:04:00.8]} 21... f6 {[%clk 0:03:15.4]} 22. Kf2
{[%clk 0:03:59.9]} 22... g5 {[%clk 0:03:13.3]} 23. g3 {[%clk 0:03:58.4]} 23...
gxf4 {[%clk 0:03:12.1]} 24. gxf4 {[%clk 0:03:57.3]} 24... Ke7 {[%clk 0:03:07.9]}
25. Kf3 {[%clk 0:03:56.2]} 25... Ke6 {[%clk 0:03:06.2]} 26. Kg4 {[%clk
0:03:47.4]} 26... Kf7 {[%clk 0:03:00.8]} 27. Kf5 {[%clk 0:03:44.9]} 27... c5
{[%clk 0:02:58.4]} 28. Bf2 {[%clk 0:03:39.5]} 28... c4 {[%clk 0:02:56.6]} 29.
Bh4 {[%clk 0:03:35.3]} 29... Be7 {[%clk 0:02:52]} 30. e5 {[%clk 0:03:29.1]}
30... fxe5 {[%clk 0:02:50.5]} 31. Bxe7 {[%clk 0:03:27.8]} 31... exf4 {[%clk
0:02:38.1]} 32. Bh4 {[%clk 0:03:18]} 32... f3 {[%clk 0:02:36.1]} 33. Kg4 {[%clk
0:03:16.7]} 33... Kg6 {[%clk 0:02:33.1]} 34. Kxf3 {[%clk 0:03:15.2]} 34... h5
{[%clk 0:02:32]} 35. Kf4 {[%clk 0:03:13.5]} 35... c6 {[%clk 0:02:30.2]} 36. Ke5
{[%clk 0:03:10.6]} 36... a5 {[%clk 0:02:24.2]} 37. Kd4 {[%clk 0:03:08.2]} 37...
Kf5 {[%clk 0:02:20.8]} 38. Kxc4 {[%clk 0:03:06.1]} 38... Kf4 {[%clk 0:02:18.7]}
39. Kc5 {[%clk 0:03:03]} 1-0

[Event "Live Chess"]
[Site "Chess.com"]
[Date "2023.05.21"]
[Round "-"]
[White "raminguy"]
[Black "Long1968"]
[Result "1-0"]
[WhiteElo "1939"]
[BlackElo "1048"]
[TimeControl "300"]
[EndTime "23:11:25 PDT"]
[Termination "raminguy won by checkmate"]

1. d4 {[%clk 0:04:59]} 1... e6 {[%clk 0:04:54.8]} 2. Nc3 {[%clk 0:04:58.3]} 2...
c5 {[%clk 0:04:50]} 3. d5 {[%clk 0:04:55.6]} 3... Nf6 {[%clk 0:04:43.6]} 4. e4
{[%clk 0:04:52.9]} 4... a6 {[%clk 0:04:35.9]} 5. dxe6 {[%clk 0:04:48.6]} 5...
fxe6 {[%clk 0:04:32.2]} 6. Nf3 {[%clk 0:04:42.7]} 6... b5 {[%clk 0:04:24.7]} 7.
e5 {[%clk 0:04:39.7]} 7... Ng8 {[%clk 0:04:12.2]} 8. Ne4 {[%clk 0:04:37.1]} 8...
Bb7 {[%clk 0:04:00.5]} 9. Bg5 {[%clk 0:04:31.9]} 9... Qc7 {[%clk 0:03:47.8]} 10.
Nd6+ {[%clk 0:04:28.7]} 10... Bxd6 {[%clk 0:03:42.2]} 11. exd6 {[%clk
0:04:28.6]} 11... Qc6 {[%clk 0:03:36.4]} 12. Bd3 {[%clk 0:04:22.7]} 12... Nf6
{[%clk 0:03:30.8]} 13. O-O {[%clk 0:04:16.8]} 13... O-O {[%clk 0:03:21.8]} 14.
Re1 {[%clk 0:04:08.1]} 14... Nd5 {[%clk 0:03:13.5]} 15. Be7 {[%clk 0:03:57.8]}
15... Re8 {[%clk 0:03:05.8]} 16. Ne5 {[%clk 0:03:52.9]} 16... Qb6 {[%clk
0:02:54.5]} 17. Bxh7+ {[%clk 0:03:47.5]} 17... Kxh7 {[%clk 0:02:30.6]} 18. Qh5+
{[%clk 0:03:45.9]} 18... Kg8 {[%clk 0:02:26.9]} 19. Qxe8+ {[%clk 0:03:44.5]}
19... Kh7 {[%clk 0:02:21.7]} 20. Re4 {[%clk 0:03:28.6]} 20... Nxe7 {[%clk
0:01:43.1]} 21. Rh4# {[%clk 0:03:26]} 1-0

[Event "Live Chess"]
[Site "Chess.com"]
[Date "2023.05.21"]
[Round "-"]
[White "Biranidun"]
[Black "chessfiction"]
[Result "1-0"]
[WhiteElo "2558"]
[BlackElo "2345"]
[TimeControl "300"]
[EndTime "23:11:33 PDT"]
[Termination "Biranidun won by resignation"]

1. e4 {[%clk 0:04:59.1]} 1... d6 {[%clk 0:04:58]} 2. d4 {[%clk 0:04:57.8]} 2...
Nf6 {[%clk 0:04:57.9]} 3. Nc3 {[%clk 0:04:55.8]} 3... c6 {[%clk 0:04:57.3]} 4.
f4 {[%clk 0:04:52.9]} 4... Qa5 {[%clk 0:04:56.4]} 5. Bd3 {[%clk 0:04:52.5]} 5...
Bg4 {[%clk 0:04:53.9]} 6. Nf3 {[%clk 0:04:52]} 6... Nbd7 {[%clk 0:04:52.4]} 7.
Be3 {[%clk 0:04:46.7]} 7... e5 {[%clk 0:04:46.2]} 8. h3 {[%clk 0:04:43.6]} 8...
Bh5 {[%clk 0:04:42.1]} 9. O-O {[%clk 0:04:42.6]} 9... Be7 {[%clk 0:04:40.5]} 10.
Ne2 {[%clk 0:04:34]} 10... Bxf3 {[%clk 0:04:38.7]} 11. Rxf3 {[%clk 0:04:33]}
11... O-O {[%clk 0:04:35.9]} 12. c3 {[%clk 0:04:25]} 12... Kh8 {[%clk
0:04:32.3]} 13. Ng3 {[%clk 0:04:23.8]} 13... Rg8 {[%clk 0:04:27.3]} 14. Qb3
{[%clk 0:04:22.2]} 14... Qb6 {[%clk 0:04:22.3]} 15. Nf5 {[%clk 0:04:05.7]} 15...
Rae8 {[%clk 0:04:12.4]} 16. dxe5 {[%clk 0:03:51.1]} 16... Qxb3 {[%clk
0:04:09.5]} 17. axb3 {[%clk 0:03:51]} 17... dxe5 {[%clk 0:04:08.2]} 18. Nxe7
{[%clk 0:03:47.1]} 18... Rxe7 {[%clk 0:04:06]} 19. Rxa7 {[%clk 0:03:45.8]} 19...
exf4 {[%clk 0:04:04.4]} 20. Rxf4 {[%clk 0:03:42]} 20... Nd5 {[%clk 0:04:00.1]}
21. exd5 {[%clk 0:03:27.9]} 21... Rxe3 {[%clk 0:03:55.1]} 22. dxc6 {[%clk
0:03:15.2]} 22... Rxd3 {[%clk 0:03:49.5]} 23. cxd7 {[%clk 0:03:13.7]} 23... Rxd7
{[%clk 0:03:49.4]} 24. Rb4 {[%clk 0:03:00.5]} 24... Rb8 {[%clk 0:03:27.3]} 25.
Rb6 {[%clk 0:02:58.8]} 25... h6 {[%clk 0:03:18.3]} 26. b4 {[%clk 0:02:58]} 26...
Rc7 {[%clk 0:03:12.7]} 27. Kf2 {[%clk 0:02:55.7]} 27... g6 {[%clk 0:03:08.3]}
28. g4 {[%clk 0:02:22.9]} 28... Kg7 {[%clk 0:03:00.3]} 29. Ke3 {[%clk 0:02:21]}
29... Re8+ {[%clk 0:02:46.4]} 30. Kd3 {[%clk 0:02:17.5]} 30... Rd7+ {[%clk
0:02:45.7]} 31. Kc4 {[%clk 0:02:14.6]} 31... Re4+ {[%clk 0:02:43.9]} 32. Kb3
{[%clk 0:02:09]} 32... Ree7 {[%clk 0:02:43.3]} 33. Rb5 {[%clk 0:02:00.2]} 33...
Rc7 {[%clk 0:02:34.1]} 34. h4 {[%clk 0:01:54.5]} 34... Red7 {[%clk 0:02:26.9]}
35. g5 {[%clk 0:01:52.6]} 35... hxg5 {[%clk 0:02:25]} 36. hxg5 {[%clk
0:01:52.5]} 36... Re7 {[%clk 0:02:24.1]} 37. Rb6 {[%clk 0:01:44]} 37... Red7
{[%clk 0:02:17.3]} 38. Ra5 {[%clk 0:01:31.3]} 38... Re7 {[%clk 0:02:08.1]} 39.
Rd5 {[%clk 0:01:29.4]} 39... Re2 {[%clk 0:02:03]} 40. Rdb5 {[%clk 0:01:23.6]}
40... Ree7 {[%clk 0:02:01.4]} 41. Ka3 {[%clk 0:01:18]} 41... Red7 {[%clk
0:01:58.6]} 42. Rc5 {[%clk 0:01:16.6]} 42... Kf8 {[%clk 0:01:49.9]} 43. Rxc7
{[%clk 0:01:15.2]} 43... Rxc7 {[%clk 0:01:49.8]} 44. b5 {[%clk 0:01:11.8]} 44...
Ke7 {[%clk 0:01:44.2]} 45. Kb4 {[%clk 0:01:10.9]} 45... Kd7 {[%clk 0:01:42.9]}
46. c4 {[%clk 0:01:06.3]} 46... Kc8 {[%clk 0:01:42]} 47. Rf6 {[%clk 0:01:03.3]}
47... Re7 {[%clk 0:01:41.2]} 48. b6 {[%clk 0:00:59.6]} 48... Kd7 {[%clk
0:01:38.3]} 49. c5 {[%clk 0:00:57.3]} 49... Ke8 {[%clk 0:01:36.3]} 50. Kb5
{[%clk 0:00:55.3]} 50... Re5 {[%clk 0:01:32.3]} 51. b4 {[%clk 0:00:42]} 51...
Rxg5 {[%clk 0:01:31.2]} 52. Rf1 {[%clk 0:00:40.7]} 52... Re5 {[%clk 0:01:28.3]}
53. Rh1 {[%clk 0:00:37.7]} 53... g5 {[%clk 0:01:15.7]} 54. Rh8+ {[%clk
0:00:36.5]} 54... Ke7 {[%clk 0:01:15.1]} 55. Rb8 {[%clk 0:00:36]} 55... g4
{[%clk 0:01:14.6]} 56. Rxb7+ {[%clk 0:00:35.4]} 56... Kf6 {[%clk 0:01:08.3]} 57.
Rd7 {[%clk 0:00:32.1]} 57... Ke6 {[%clk 0:01:03.4]} 58. Rd6+ {[%clk 0:00:30.5]}
58... Ke7 {[%clk 0:01:02.5]} 59. b7 {[%clk 0:00:30.4]} 1-0

[Event "Live Chess"]
[Site "Chess.com"]
[Date "2023.05.21"]
[Round "-"]
[White "Supertromp"]
[Black "YrrriKharkiv"]
[Result "0-1"]
[WhiteElo "2143"]
[BlackElo "2033"]
[TimeControl "300"]
[EndTime "23:11:52 PDT"]
[Termination "YrrriKharkiv won by resignation"]

1. e4 {[%clk 0:04:58.7]} 1... Nf6 {[%clk 0:04:55.6]} 2. e5 {[%clk 0:04:57.3]}
2... Nd5 {[%clk 0:04:54.8]} 3. d4 {[%clk 0:04:56.9]} 3... d6 {[%clk 0:04:53.6]}
4. Nf3 {[%clk 0:04:55.8]} 4... g6 {[%clk 0:04:52.1]} 5. c4 {[%clk 0:04:53.5]}
5... Nb6 {[%clk 0:04:51.1]} 6. Nc3 {[%clk 0:04:51.1]} 6... Bg7 {[%clk
0:04:49.8]} 7. exd6 {[%clk 0:04:49.8]} 7... cxd6 {[%clk 0:04:48.6]} 8. Bd3
{[%clk 0:04:46.4]} 8... O-O {[%clk 0:04:46.7]} 9. O-O {[%clk 0:04:45.5]} 9...
Bg4 {[%clk 0:04:43.6]} 10. h3 {[%clk 0:04:44.3]} 10... Bxf3 {[%clk 0:04:36.6]}
11. Qxf3 {[%clk 0:04:44.2]} 11... Bxd4 {[%clk 0:04:35]} 12. Qxb7 {[%clk
0:04:40.8]} 12... N8d7 {[%clk 0:04:34.1]} 13. Be3 {[%clk 0:04:25]} 13... Bxe3
{[%clk 0:04:30.7]} 14. fxe3 {[%clk 0:04:24.9]} 14... Qc8 {[%clk 0:04:19]} 15.
Qe4 {[%clk 0:04:17.9]} 15... Nc5 {[%clk 0:04:13.2]} 16. Qd4 {[%clk 0:04:15]}
16... Nxd3 {[%clk 0:04:12.1]} 17. Qxd3 {[%clk 0:04:14.1]} 17... Qxc4 {[%clk
0:04:11.1]} 18. Qd2 {[%clk 0:04:01.2]} 18... Rac8 {[%clk 0:04:06.2]} 19. Rf4
{[%clk 0:03:59.8]} 19... Qc5 {[%clk 0:03:58.4]} 20. Ne4 {[%clk 0:03:49.5]} 20...
Qc2 {[%clk 0:03:50]} 21. Qa5 {[%clk 0:03:31.9]} 21... Qxb2 {[%clk 0:03:31.4]}
22. Raf1 {[%clk 0:03:28.8]} 22... Nc4 {[%clk 0:03:16.3]} 23. Qxa7 {[%clk
0:03:21.9]} 23... Qe5 {[%clk 0:03:04.7]} 24. Qa6 {[%clk 0:02:47.3]} 24... Nxe3
{[%clk 0:02:39.9]} 25. R1f2 {[%clk 0:02:39.8]} 25... Nd5 {[%clk 0:02:31.3]} 26.
Rxf7 {[%clk 0:02:17.4]} 26... Rc1+ {[%clk 0:02:20.5]} 27. Rf1 {[%clk 0:02:12.5]}
27... Rxf1+ {[%clk 0:02:18.5]} 28. Rxf1 {[%clk 0:02:09.9]} 28... Rxf1+ {[%clk
0:02:16.1]} 29. Qxf1 {[%clk 0:02:09.1]} 29... Qxe4 {[%clk 0:02:15.3]} 30. Qb5
{[%clk 0:02:01.3]} 30... Kf7 {[%clk 0:02:00.2]} 31. a4 {[%clk 0:01:58.7]} 31...
Ne3 {[%clk 0:01:55.1]} 32. Qb3+ {[%clk 0:01:39.5]} 32... d5 {[%clk 0:01:48.1]}
33. Qb2 {[%clk 0:01:37.8]} 33... Qxa4 {[%clk 0:01:31.9]} 34. Qh8 {[%clk
0:01:31.5]} 34... Qd1+ {[%clk 0:01:28.6]} 35. Kf2 {[%clk 0:01:30.2]} 35... Qd2+
{[%clk 0:01:25.4]} 36. Kf3 {[%clk 0:01:18.1]} 36... Qxg2+ {[%clk 0:01:24.3]} 37.
Kf4 {[%clk 0:01:17.2]} 37... Qxh3 {[%clk 0:01:21.8]} 38. Qf6+ {[%clk 0:01:05.6]}
38... Ke8 {[%clk 0:01:13.3]} 39. Qc6+ {[%clk 0:00:20]} 39... Qd7 {[%clk
0:01:09.4]} 40. Qa8+ {[%clk 0:00:19.5]} 40... Kf7 {[%clk 0:01:04.1]} 41. Kxe3
{[%clk 0:00:19]} 41... Qe6+ {[%clk 0:01:01.5]} 42. Kd3 {[%clk 0:00:18]} 42...
Qe4+ {[%clk 0:00:56.4]} 43. Kd2 {[%clk 0:00:17]} 43... Qd4+ {[%clk 0:00:55.4]}
44. Ke2 {[%clk 0:00:15.5]} 44... h5 {[%clk 0:00:53.2]} 45. Kf1 {[%clk
0:00:14.9]} 45... h4 {[%clk 0:00:51]} 46. Qa2 {[%clk 0:00:14.6]} 46... h3 {[%clk
0:00:46.1]} 47. Qh2 {[%clk 0:00:13.6]} 47... Qg4 {[%clk 0:00:44.8]} 48. Kf2
{[%clk 0:00:11.6]} 48... Qg2+ {[%clk 0:00:43.7]} 49. Qxg2 {[%clk 0:00:10.6]}
49... hxg2 {[%clk 0:00:43]} 0-1

[Event "Live Chess"]
[Site "Chess.com"]
[Date "2023.05.21"]
[Round "-"]
[White "LaupMiths"]
[Black "Jo1ts"]
[Result "1-0"]
[WhiteElo "1816"]
[BlackElo "822"]
[TimeControl "300"]
[EndTime "23:11:52 PDT"]
[Termination "LaupMiths won by checkmate"]

1. Nf3 {[%clk 0:04:56.6]} 1... d5 {[%clk 0:04:57.8]} 2. c4 {[%clk 0:04:55.6]}
2... dxc4 {[%clk 0:04:54.8]} 3. Qa4+ {[%clk 0:04:53.5]} 3... Nc6 {[%clk
0:04:44.1]} 4. Qxc4 {[%clk 0:04:51.7]} 4... Nf6 {[%clk 0:04:39.7]} 5. b3 {[%clk
0:04:49.9]} 5... e5 {[%clk 0:04:34]} 6. Nc3 {[%clk 0:04:44.6]} 6... Bd6 {[%clk
0:04:30.4]} 7. Bb2 {[%clk 0:04:42.3]} 7... Be6 {[%clk 0:04:27.7]} 8. Qh4 {[%clk
0:04:35.5]} 8... Bg4 {[%clk 0:04:03.1]} 9. d3 {[%clk 0:04:23]} 9... Bxf3 {[%clk
0:03:59.3]} 10. gxf3 {[%clk 0:04:20.8]} 10... O-O {[%clk 0:03:48.1]} 11. Rg1
{[%clk 0:04:17.1]} 11... Bc5 {[%clk 0:03:39.9]} 12. Qg5 {[%clk 0:04:04.3]} 12...
g6 {[%clk 0:03:33.5]} 13. Bh3 {[%clk 0:03:58.2]} 13... Bd4 {[%clk 0:03:12]} 14.
Bf5 {[%clk 0:03:52.6]} 14... Bxc3+ {[%clk 0:03:07.4]} 15. Bxc3 {[%clk
0:03:52.5]} 15... Nd4 {[%clk 0:03:03.3]} 16. Bxd4 {[%clk 0:03:44.5]} 16... Qxd4
{[%clk 0:03:00.1]} 17. Rc1 {[%clk 0:03:42.4]} 17... Rac8 {[%clk 0:02:52.6]} 18.
Qxf6 {[%clk 0:03:38.7]} 18... b5 {[%clk 0:02:38.6]} 19. Bxc8 {[%clk 0:03:35.6]}
19... Rxc8 {[%clk 0:02:35]} 20. Rg4 {[%clk 0:03:27.2]} 20... Qb2 {[%clk
0:02:29.6]} 21. Qc6 {[%clk 0:03:24.4]} 21... b4 {[%clk 0:02:12.7]} 22. Kf1
{[%clk 0:03:21.3]} 22... Qxa2 {[%clk 0:02:09.1]} 23. Rxb4 {[%clk 0:03:17.2]}
23... Qa3 {[%clk 0:02:07.6]} 24. Rb7 {[%clk 0:03:14]} 24... Qe7 {[%clk 0:02:02]}
25. Rxc7 {[%clk 0:03:09.8]} 25... Rb8 {[%clk 0:01:56.4]} 26. Rc8+ {[%clk
0:03:04.4]} 26... Rxc8 {[%clk 0:01:53.4]} 27. Qxc8+ {[%clk 0:03:04.3]} 27... Kg7
{[%clk 0:01:52.3]} 28. Qc5 {[%clk 0:02:52.7]} 28... Qh4 {[%clk 0:01:48]} 29.
Qxe5+ {[%clk 0:02:51]} 29... Kh6 {[%clk 0:01:43.3]} 30. Qg3 {[%clk 0:02:45.9]}
30... Qb4 {[%clk 0:01:37.9]} 31. Rc7 {[%clk 0:02:26.7]} 31... Qxb3 {[%clk
0:01:31.8]} 32. Kg2 {[%clk 0:02:25.6]} 32... Qd1 {[%clk 0:01:28.8]} 33. Rxf7
{[%clk 0:02:22.7]} 33... Qxe2 {[%clk 0:01:25.6]} 34. Qh4# {[%clk 0:02:21.4]} 1-0